bitfinex/quotes_BTCUSD_20220101
["timestamp","ask_amount","ask_price","bid_price","bid_amount"]
[1641047284892,0.02072788,47056.0,47055.0,0.96902068]
[1641047285092,0.02072788,47056.0,47055.0,0.41921568]
[1641047285291,0.00876146,47062.0,47056.0,0.86]
[1641047285493,0.00876146,47062.0,47061.0,0.46780859]
[1641047285691,0.00876146,47062.0,47061.0,0.87018936]
[1641047286292,0.053136,47065.0,47061.0,0.87018936]
[1641047286495,0.053136,47065.0,47064.0,0.07780859]
[1641047286697,0.19762482,47065.0,47064.0,0.07780859]
[1641047288096,0.40762482,47065.0,47064.0,0.07780859]
[1641047289559,0.42814809,47065.0,47064.0,0.07780859]
[1641047290562,0.44663571,47065.0,47064.0,0.07780859]
[1641047290762,0.42611244,47065.0,47064.0,0.07899729]
[1641047291563,0.42611244,47065.0,47064.0,0.0011887]
[1641047291564,0.49449511,47065.0,47064.0,0.0011887]
[1641047291762,0.83469011,47065.0,47064.0,0.0011887]
[1641047292384,0.79781982,47065.0,47064.0,0.07899729]
[1641047292585,0.81770864,47065.0,47064.0,0.07899729]
[1641047292785,0.81770864,47065.0,47064.0,0.0011887]
[1641047293583,0.83808654,47065.0,47064.0,0.0011887]
[1641047293787,0.81819772,47065.0,47064.0,0.0011887]
[1641047294491,0.80527275,47065.0,47064.0,0.0011887]
[1641047294685,0.78985126,47065.0,47064.0,0.0011887]
[1641047294887,0.76947336,47065.0,47064.0,0.0011887]
[1641047295486,0.78818997,47065.0,47064.0,0.0011887]
[1641047295686,0.76653643,47065.0,47064.0,0.0011887]
[1641047296543,0.78774805,47065.0,47064.0,0.0011887]
[1641047296744,0.76903144,47065.0,47064.0,0.0011887]
[1641047297545,0.79096309,47065.0,47064.0,0.0011887]
[1641047297745,0.76975147,47065.0,47064.0,0.0011887]
[1641047298545,0.79169794,47065.0,47064.0,0.0011887]
[1641047299346,0.74781982,47065.0,47064.0,0.0011887]
[1641047299546,0.76738377,47065.0,47064.0,0.0011887]
[1641047300596,0.78770438,47065.0,47064.0,0.0011887]
[1641047301693,0.80927974,47065.0,47064.0,0.0011887]
[1641047301894,0.76939518,47065.0,47064.0,0.0011887]
[1641047302594,0.78874296,47065.0,47064.0,0.0011887]
[1641047302794,0.7671676,47065.0,47064.0,0.0011887]
[1641047303838,0.78713549,47065.0,47064.0,0.0011887]
[1641047304039,0.76778771,47065.0,47064.0,0.0011887]
[1641047304638,0.78692873,47065.0,47064.0,0.0011887]
[1641047305438,0.74781982,47065.0,47064.0,0.0011887]
[1641047305638,0.76847372,47065.0,47064.0,0.0011887]
[1641047306040,0.053154,47062.0,47058.0,0.39059848]
[1641047306239,0.05315229,47061.0,47058.0,0.39059848]
[1641047306441,0.053154,47060.0,47057.0,0.07788162]
[1641047307215,0.26571469,47058.0,47057.0,0.07788162]
[1641047307416,0.31886669,47058.0,47057.0,0.07788162]
[1641047308617,0.32870436,47058.0,47057.0,0.07788162]
[1641047309820,0.34695446,47058.0,47057.0,0.07788162]
[1641047310222,0.08123977,47058.0,47057.0,0.07788162]
[1641047310519,0.053152,47058.0,47057.0,0.07788162]
[1641047311344,0.07430702,47058.0,47057.0,0.07788162]
[1641047311941,0.053152,47058.0,47057.0,0.07788162]
[1641047314046,0.393347,47058.0,47057.0,0.07788162]
[1641047314897,0.41526229,47058.0,47057.0,0.07788162]
[1641047315699,0.4339553,47058.0,47057.0,0.07780859]
[1641047315898,0.41204001,47058.0,47057.0,0.07780859]
[1641047317500,0.43258496,47058.0,47057.0,0.07780859]
[1641047317700,0.41389195,47058.0,47057.0,0.07780859]
[1641047317901,0.43382382,47058.0,47057.0,0.07780859]
[1641047318102,0.41327887,47058.0,47057.0,0.07780859]
[1641047318741,0.4341458,47058.0,47057.0,0.07780859]
[1641047318942,0.41421393,47058.0,47057.0,0.07780859]
[1641047319842,0.5782529,47058.0,47057.0,0.07780859]
[1641047320043,0.55738597,47058.0,47057.0,0.07780859]
[1641047320843,0.5757121,47058.0,47057.0,0.07780859]
[1641047321142,0.55616195,47058.0,47057.0,0.07780859]
[1641047321744,0.57757227,47058.0,47057.0,0.07780859]
[1641047322044,0.55924614,47058.0,47057.0,0.07780859]
[1641047322288,0.83030777,47058.0,47057.0,0.07780859]
[1641047322887,0.8485738,47058.0,47057.0,0.07780859]
[1641047323087,0.82716348,47058.0,47057.0,0.07780859]
[1641047323889,0.84816417,47058.0,47057.0,0.07780859]
[1641047324088,0.82989814,47058.0,47057.0,0.07780859]
[1641047324288,0.82989814,47058.0,47052.0,0.00876138]
[1641047324491,0.08510819,47053.0,47052.0,0.00876138]
[1641047324890,0.75534074,47053.0,47052.0,0.00876138]
[1641047325292,0.80534074,47053.0,47052.0,0.00876138]
[1641047325492,0.95534074,47053.0,47052.0,0.00876138]
[1641047325689,0.72096319,47053.0,47052.0,0.00876138]
[1641047325954,0.54042575,47053.0,47052.0,0.00876138]
[1641047326345,0.54042575,47053.0,47050.0,0.01847372]
[1641047326544,0.45531756,47053.0,47050.0,0.01847372]
[1641047326745,0.45531756,47053.0,47051.0,0.00018258]
[1641047326945,0.52993732,47053.0,47051.0,0.00018258]
[1641047327146,0.45731391,47053.0,47051.0,0.00018258]
[1641047327947,0.4781949,47053.0,47051.0,0.00018258]
[1641047328552,0.435855,47053.0,47051.0,0.00018258]
[1641047328950,0.45386854,47053.0,47051.0,0.00018258]
[1641047329149,0.645855,47053.0,47051.0,0.00018258]
[1641047330602,0.66770674,47053.0,47051.0,0.00018258]
[1641047331503,0.68962125,47053.0,47051.0,0.00018258]
[1641047331803,0.66776951,47053.0,47051.0,0.00018258]
[1641047332003,0.6867441,47053.0,47051.0,0.00018258]
[1641047332202,0.66482959,47053.0,47051.0,0.00018258]
[1641047332403,0.76482959,47053.0,47051.0,0.00018258]
[1641047332802,0.71799038,47053.0,47051.0,0.00018258]
[1641047333004,0.73900006,47053.0,47051.0,0.00018258]
[1641047333840,0.69901579,47053.0,47051.0,0.00018258]
[1641047334041,0.71900897,47053.0,47051.0,0.00018258]
[1641047334843,0.74044383,47053.0,47051.0,0.00018258]
[1641047335244,0.72045065,47053.0,47051.0,0.00018258]
[1641047335443,0.66728986,47053.0,47051.0,0.00018258]
[1641047335843,0.71728986,47053.0,47051.0,0.00018258]
[1641047336044,0.92032074,47053.0,47051.0,0.00018258]
[1641047336446,0.66715774,47053.0,47051.0,0.00018258]
[1641047336642,0.72031778,47053.0,47051.0,0.00018258]
[1641047336843,0.66715774,47053.0,47051.0,0.00018258]
[1641047337046,0.68549582,47053.0,47051.0,0.00018258]
[1641047337299,0.66419308,47053.0,47051.0,0.00018258]
[1641047337499,0.27245377,47052.0,47051.0,0.00018258]
[1641047337701,0.54606477,47052.0,47051.0,0.00018258]
[1641047338101,0.74606477,47052.0,47051.0,0.00018258]
[1641047338300,0.84596477,47052.0,47051.0,0.00018258]
[1641047338701,0.84596477,47052.0,47050.0,0.00923724]
[1641047338909,0.79238875,47051.0,47050.0,0.00923724]
[1641047339102,0.89238875,47051.0,47050.0,0.00923724]
[1641047339300,0.89238875,47051.0,47047.0,0.00876149]
[1641047339502,0.99872297,47051.0,47047.0,0.00876149]
[1641047339701,0.053168,47050.0,47047.0,0.00876149]
[1641047339904,0.273611,47049.0,47047.0,0.00876149]
[1641047340106,0.41676261,47048.0,47047.0,0.00876149]
[1641047340303,0.75665761,47048.0,47036.0,0.01]
[1641047340504,0.323611,47047.0,47036.0,0.01]
[1641047340703,0.366111,47047.0,47036.0,0.01]
[1641047340963,0.153076,47044.0,47036.0,0.01]
[1641047341152,0.0425,47043.0,47036.0,0.01]
[1641047341354,0.34493846,47043.0,47036.0,0.01]
[1641047341853,0.1063582,47042.0,47036.0,0.01]
[1641047342053,0.159536,47041.0,47036.0,0.01]
[1641047342253,0.33550365,47040.0,47037.0,0.00025561]
[1641047342655,0.48550365,47040.0,47037.0,0.00025561]
[1641047342855,0.393451,47039.0,47037.0,0.00025561]
[1641047343057,0.543451,47039.0,47037.0,0.00025561]
[1641047343459,0.593451,47039.0,47037.0,0.00025561]
[1641047343758,0.435951,47039.0,47037.0,0.00025561]
[1641047343957,0.41437114,47039.0,47037.0,0.00025561]
[1641047344159,0.07409914,47039.0,47037.0,0.00025561]
[1641047344991,0.07409914,47039.0,47037.0,0.28459709]
[1641047345190,0.053179,47039.0,47037.0,0.28459709]
[1641047345390,0.053179,47039.0,47038.0,0.67023735]
[1641047345589,0.053179,47039.0,47038.0,1.2993655]
[1641047346190,0.053179,47039.0,47038.0,1.29476956]
[1641047346389,0.053179,47039.0,47038.0,1.01050935]
[1641047346590,0.053179,47039.0,47038.0,1.29922852]
[1641047347795,0.053179,47039.0,47038.0,0.62922852]
[1641047348196,0.12693009,47047.0,47038.0,0.63047554]
[1641047348447,0.12693009,47047.0,47039.0,0.340272]
[1641047348641,0.02061509,47047.0,47039.0,0.3404911]
[1641047348842,0.02061509,47047.0,47040.0,0.04270084]
[1641047349041,0.02061509,47047.0,47041.0,0.70626434]
[1641047349241,0.02061509,47047.0,47041.0,0.70644692]
[1641047349545,0.106302,47053.0,47042.0,0.00016432]
[1641047349742,0.106302,47053.0,47048.0,0.34436815]
[1641047349941,0.0001278,47058.0,47049.0,0.62989955]
[1641047350343,0.00010955,47057.0,47049.0,0.62989955]
[1641047350542,0.00010955,47057.0,47052.0,0.00122438]
[1641047350741,0.05323429,47056.0,47053.0,0.340272]
[1641047351241,7.303e-05,47055.0,47054.0,0.29404408]
[1641047351445,7.303e-05,47055.0,47054.0,0.63431608]
[1641047352313,7.303e-05,47055.0,47054.0,0.29404408]
[1641047352508,7.303e-05,47055.0,47052.0,0.25129843]
[1641047352708,0.053149,47054.0,47052.0,0.00122438]
[1641047352906,0.053149,47054.0,47049.0,0.32809579]
[1641047353107,0.053149,47054.0,47048.0,0.34436815]
[1641047353509,0.053149,47054.0,47049.0,0.26472125]
[1641047355211,0.053149,47054.0,47048.0,0.61584475]
[1641047355411,0.053149,47054.0,47048.0,0.34436815]
[1641047355612,0.053149,47054.0,47047.0,0.00121138]
[1641047355955,0.38040146,47054.0,47043.0,0.00880638]
[1641047356143,0.053164,47049.0,47043.0,0.00880638]
[1641047356343,0.053164,47049.0,47044.0,0.00012781]
[1641047356644,0.14448882,47045.0,47041.0,0.73759538]
[1641047356843,0.28728945,47047.0,47041.0,0.73759538]
[1641047357041,0.28728945,47047.0,47044.0,0.0011892]
[1641047357242,0.14448882,47045.0,47044.0,0.0011892]
[1641047358042,0.48474882,47045.0,47044.0,0.0011892]
[1641047359345,0.55928203,47045.0,47044.0,0.0011892]
[1641047360405,0.21902203,47045.0,47044.0,0.0011892]
[1641047360805,0.44737213,47045.0,47044.0,0.0011892]
[1641047361007,0.42600092,47045.0,47044.0,0.0011892]
[1641047361408,0.74791082,47045.0,47044.0,0.0011892]
[1641047362206,0.76646828,47045.0,47044.0,0.0011892]
[1641047363208,0.78836641,47045.0,47044.0,0.0011892]
[1641047363457,0.76980895,47045.0,47044.0,0.0011892]
[1641047364252,0.79176682,47045.0,47044.0,0.0011892]
[1641047364452,0.76986869,47045.0,47044.0,0.0011892]
[1641047365255,0.79105844,47045.0,47044.0,0.0011892]
[1641047366053,0.74791082,47045.0,47044.0,0.0011892]
[1641047366256,0.76705763,47045.0,47044.0,0.0011892]
[1641047367198,0.78808874,47045.0,47044.0,0.0011892]
[1641047367398,0.81894193,47045.0,47044.0,0.0011892]
[1641047367599,0.96894193,47045.0,47044.0,0.0011892]
[1641047368199,0.98654351,47045.0,47044.0,0.0011892]
[1641047368401,0.9655124,47045.0,47044.0,0.0011892]
[1641047368600,0.76607873,47045.0,47044.0,0.0011892]
[1641047369203,0.78661286,47045.0,47044.0,0.0011892]
[1641047369601,0.74791082,47045.0,47044.0,0.0011892]
[1641047370207,0.76826492,47045.0,47044.0,0.0011892]
[1641047371255,0.78839466,47045.0,47044.0,0.0011892]
[1641047371461,0.76804056,47045.0,47044.0,0.0011892]
[1641047372254,0.78830804,47045.0,47044.0,0.0011892]
[1641047373256,0.80735711,47045.0,47044.0,0.0011892]
[1641047373455,0.76695989,47045.0,47044.0,0.0011892]
[1641047374256,0.78595979,47045.0,47044.0,0.0011892]
[1641047374558,0.76691072,47045.0,47044.0,0.0011892]
[1641047375394,0.78724675,47045.0,47044.0,0.0011892]
[1641047375597,0.76824685,47045.0,47044.0,0.0011892]
[1641047376395,0.7687655,47045.0,47044.0,0.0011892]
[1641047377296,0.78786486,47045.0,47044.0,0.0011892]
[1641047377596,0.76701018,47045.0,47044.0,0.0011892]
[1641047378461,0.78791506,47045.0,47044.0,0.0011892]
[1641047378660,0.7688157,47045.0,47044.0,0.0011892]
[1641047379261,0.78913479,47045.0,47044.0,0.0011892]
[1641047379461,0.76822991,47045.0,47044.0,0.0011892]
[1641047380364,0.78785765,47045.0,47044.0,0.0011892]
[1641047380564,0.76753856,47045.0,47044.0,0.0011892]
[1641047381365,0.78567114,47045.0,47044.0,0.0011892]
[1641047381565,0.7660434,47045.0,47044.0,0.0011892]
[1641047382390,0.78408984,47045.0,47044.0,0.0011892]
[1641047382591,0.76595726,47045.0,47044.0,0.0011892]
[1641047383496,0.78589769,47045.0,47044.0,0.0011892]
[1641047383694,0.74791082,47045.0,47044.0,0.0011892]
[1641047384294,0.76873776,47045.0,47044.0,0.0011892]
[1641047385296,0.78937469,47045.0,47044.0,0.0011892]
[1641047385497,0.76854775,47045.0,47044.0,0.0011892]
[1641047385952,0.42828775,47045.0,47044.0,0.0011892]
[1641047386445,0.45024096,47045.0,47044.0,0.0011892]
[1641047386742,0.42960403,47045.0,47044.0,0.0011892]
[1641047387343,0.44933111,47045.0,47044.0,0.0011892]
[1641047387545,0.4273779,47045.0,47044.0,0.0011892]
[1641047388347,0.44753785,47045.0,47044.0,0.0011892]
[1641047388546,0.42781077,47045.0,47044.0,0.0011892]
[1641047389349,0.44854464,47045.0,47044.0,0.0011892]
[1641047389549,0.42838469,47045.0,47044.0,0.0011892]
[1641047390411,0.44679541,47045.0,47044.0,0.0011892]
[1641047390612,0.42606154,47045.0,47044.0,0.0011892]
[1641047391511,0.44636016,47045.0,47044.0,0.0011892]
[1641047391712,0.42794944,47045.0,47044.0,0.0011892]
[1641047392314,0.44943042,47045.0,47044.0,0.0011892]
[1641047392513,0.4291318,47045.0,47044.0,0.0011892]
[1641047393313,0.45050506,47045.0,47044.0,0.0011892]
[1641047393549,0.42902408,47045.0,47044.0,0.0011892]
[1641047394450,0.44895909,47045.0,47044.0,0.0011892]
[1641047394750,0.42758583,47045.0,47044.0,0.0011892]
[1641047395351,0.44683832,47045.0,47044.0,0.0011892]
[1641047395552,0.42690331,47045.0,47044.0,0.0011892]
[1641047396352,0.44831873,47045.0,47044.0,0.0011892]
[1641047396554,0.42906624,47045.0,47044.0,0.0011892]
[1641047397409,0.45093086,47045.0,47044.0,0.0011892]
[1641047397609,0.42951544,47045.0,47044.0,0.0011892]
[1641047398408,0.44781237,47045.0,47044.0,0.0011892]
[1641047398608,0.42594775,47045.0,47044.0,0.0011892]
[1641047399508,0.42896809,47045.0,47044.0,0.0011892]
[1641047400512,0.44770745,47045.0,47044.0,0.0011892]
[1641047400713,0.42639018,47045.0,47044.0,0.0011892]
[1641047401161,0.28190136,47045.0,47044.0,0.0011892]
[1641047401375,0.24993931,47045.0,47044.0,0.0011892]
[1641047401565,0.24993931,47045.0,47044.0,0.342712]
[1641047401765,0.24993931,47045.0,47044.0,0.64750803]
[1641047402163,0.21,47045.0,47044.0,0.64750803]
[1641047402763,0.08627853,47045.0,47044.0,1.58750803]
[1641047402962,0.08627853,47045.0,47044.0,0.95197723]
[1641047403862,0.08627853,47045.0,47044.0,0.6471812]
[1641047404716,0.08627853,47045.0,47044.0,0.342712]
[1641047404918,0.08484038,47045.0,47044.0,0.342712]
[1641047405319,0.08484038,47045.0,47044.0,0.002452]
[1641047405519,0.08484038,47045.0,47044.0,0.0011892]
[1641047405719,0.08484038,47045.0,47044.0,0.00131701]
[1641047406621,0.2293292,47045.0,47044.0,0.00131701]
[1641047406818,0.2824922,47045.0,47044.0,0.00131701]
[1641047407422,0.6227522,47045.0,47044.0,0.00131701]
[1641047408582,0.64250264,47045.0,47044.0,0.00131701]
[1641047409473,0.66093035,47045.0,47044.0,0.08935085]
[1641047409673,0.64117991,47045.0,47044.0,0.08935085]
[1641047410472,0.66128839,47045.0,47044.0,0.08935085]
[1641047410673,0.64286068,47045.0,47044.0,0.08935085]
[1641047411474,0.66106356,47045.0,47044.0,0.08935085]
[1641047411674,0.64095508,47045.0,47044.0,0.08935085]
[1641047412516,0.5747742,47045.0,47044.0,0.08935085]
[1641047412918,0.55657132,47045.0,47044.0,0.08935085]
[1641047413519,0.57469688,47045.0,47044.0,0.08935085]
[1641047413723,0.55603738,47045.0,47044.0,0.08935085]
[1641047414118,0.60603738,47045.0,47044.0,0.08935085]
[1641047414324,0.65603738,47045.0,47044.0,0.08935085]
[1641047414522,0.67781122,47045.0,47044.0,0.08935085]
[1641047414823,0.65968566,47045.0,47044.0,0.08935085]
[1641047415619,0.67862298,47045.0,47044.0,0.08935085]
[1641047415819,0.65684914,47045.0,47044.0,0.08935085]
[1641047416072,0.75684914,47045.0,47044.0,0.08935085]
[1641047416475,0.77589856,47045.0,47044.0,0.08935085]
[1641047416672,0.75696124,47045.0,47044.0,0.08935085]
[1641047417577,0.77648203,47045.0,47044.0,0.08935085]
[1641047417775,0.75743261,47045.0,47044.0,0.08935085]
[1641047418577,0.77921298,47045.0,47044.0,0.08935085]
[1641047418777,0.75969219,47045.0,47044.0,0.08935085]
[1641047419380,0.80219219,47045.0,47044.0,0.08935085]
[1641047419580,0.82418134,47045.0,47036.0,0.01]
[1641047419821,0.0012139,47037.0,47036.0,0.01]
[1641047420222,0.29016807,47037.0,47036.0,0.01014606]
[1641047420423,0.34016807,47037.0,47036.0,0.01014606]
[1641047420620,0.49016807,47037.0,47036.0,0.01014606]
[1641047421020,0.48895417,47037.0,47036.0,0.01014606]
[1641047421718,0.2199769,47037.0,47036.0,0.01014606]
[1641047421919,0.2731579,47037.0,47036.0,0.01014606]
[1641047422117,0.1731579,47037.0,47036.0,0.01014606]
[1641047422320,0.3831579,47037.0,47036.0,0.01014606]
[1641047422518,0.4831579,47037.0,47036.0,0.01014606]
[1641047422920,0.463181,47037.0,47036.0,0.01014606]
[1641047423571,0.82170068,47037.0,47036.0,0.01014606]
[1641047424570,0.84109468,47037.0,47036.0,0.01014606]
[1641047425570,0.85997096,47037.0,47036.0,0.01014606]
[1641047425771,0.82231728,47037.0,47036.0,0.01014606]
[1641047426769,0.82446254,47037.0,47036.0,0.01014606]
[1641047426970,0.82446254,47037.0,47036.0,0.01133546]
[1641047427622,0.84578668,47037.0,47036.0,0.01133546]
[1641047427822,0.82476514,47037.0,47036.0,0.01133546]
[1641047428623,0.84419625,47037.0,47036.0,0.01133546]
[1641047428823,0.82287211,47037.0,47036.0,0.01133546]
[1641047429626,0.843585,47037.0,47036.0,0.01133546]
[1641047430427,0.803441,47037.0,47036.0,0.01133546]
[1641047430632,0.82381877,47037.0,47036.0,0.01133546]
[1641047431685,0.844857,47037.0,47036.0,0.01133546]
[1641047431885,0.82447923,47037.0,47036.0,0.01133546]
[1641047432687,0.84467987,47037.0,47036.0,0.01133546]
[1641047432885,0.82364164,47037.0,47036.0,0.01133546]
[1641047433686,0.84165825,47037.0,47036.0,0.01133546]
[1641047433886,0.82145761,47037.0,47036.0,0.01133546]
[1641047434824,0.84193399,47037.0,47036.0,0.01133546]
[1641047435024,0.82391738,47037.0,47036.0,0.01133546]
[1641047435827,0.84428337,47037.0,47036.0,0.01133546]
[1641047436024,0.82380699,47037.0,47036.0,0.01133546]
[1641047436829,0.84462035,47037.0,47036.0,0.01133546]
[1641047437027,0.82425436,47037.0,47036.0,0.01133546]
[1641047437630,0.28399436,47037.0,47036.0,0.01133546]
[1641047437830,0.3022977,47037.0,47036.0,0.01133546]
[1641047438028,0.28148434,47037.0,47036.0,0.01133546]
[1641047439066,0.263181,47037.0,47036.0,0.01133546]
[1641047444618,0.26276967,47037.0,47036.0,0.01133546]
[1641047446078,0.70302967,47037.0,47036.0,0.01133546]
[1641047446877,0.72158149,47037.0,47036.0,0.01133546]
[1641047447878,0.74250177,47037.0,47036.0,0.01133546]
[1641047448077,0.72394995,47037.0,47036.0,0.01133546]
[1641047448882,0.74555337,47037.0,47036.0,0.01133546]
[1641047449924,0.76384667,47037.0,47036.0,0.01133546]
[1641047450223,0.72132297,47037.0,47036.0,0.0111894]
[1641047450826,0.74168845,47037.0,47036.0,0.0111894]
[1641047451126,0.72339515,47037.0,47036.0,0.0111894]
[1641047451827,0.74431349,47037.0,47036.0,0.0111894]
[1641047452026,0.72394801,47037.0,47036.0,0.0111894]
[1641047452830,0.74379081,47037.0,47036.0,0.0111894]
[1641047453028,0.72287247,47037.0,47036.0,0.0111894]
[1641047453885,0.74467615,47037.0,47036.0,0.0111894]
[1641047454086,0.72483335,47037.0,47036.0,0.0111894]
[1641047454289,1.00481347,47037.0,47036.0,0.0111894]
[1641047454988,1.02673696,47037.0,47036.0,0.0111894]
[1641047455986,1.04733678,47037.0,47036.0,0.0111894]
[1641047456292,1.00360961,47037.0,47036.0,0.0111894]
[1641047456889,1.02393199,47037.0,47036.0,0.0111894]
[1641047457088,1.00333217,47037.0,47036.0,0.0111894]
[1641047457917,1.02282956,47037.0,47036.0,0.0111894]
[1641047458117,1.00250718,47037.0,47036.0,0.0111894]
[1641047458517,1.07911189,47037.0,47036.0,0.0111894]
[1641047459017,0.8179185,47037.0,47036.0,0.0111894]
[1641047459219,0.79842111,47037.0,47036.0,0.0111894]
[1641047460018,0.81945376,47037.0,47036.0,0.0111894]
[1641047460219,0.80066703,47037.0,47036.0,0.0111894]
[1641047461066,0.82096198,47037.0,47036.0,0.0111894]
[1641047461262,0.79992933,47037.0,47036.0,0.0111894]
[1641047462665,0.81894393,47037.0,47036.0,0.0111894]
[1641047462865,0.77963438,47037.0,47036.0,0.0111894]
[1641047463064,0.79887969,47037.0,47036.0,0.0111894]
[1641047464727,0.80103364,47037.0,47036.0,0.0111894]
[1641047464925,0.82141862,47037.0,47036.0,0.0111894]
[1641047465126,0.80001936,47037.0,47036.0,0.0111894]
[1641047465328,0.72341465,47037.0,47036.0,0.0111894]
[1641047465926,0.74488392,47037.0,47036.0,0.0111894]
[1641047466126,0.72449894,47037.0,47036.0,0.0111894]
[1641047467127,0.7451454,47037.0,47036.0,0.0111894]
[1641047467330,0.72367613,47037.0,47036.0,0.0111894]
[1641047468030,0.74184353,47037.0,47036.0,0.0111894]
[1641047468230,0.72119707,47037.0,47036.0,0.0111894]
[1641047469070,0.74184843,47037.0,47036.0,0.0111894]
[1641047469272,0.38342103,47037.0,47036.0,0.0111894]
[1641047469471,0.28342103,47037.0,47036.0,0.0111894]
[1641047470073,0.30483843,47037.0,47036.0,0.0111894]
[1641047470271,0.25206876,47037.0,47036.0,0.0111894]
[1641047470473,0.25206876,47037.0,47036.0,0.0536894]
[1641047470873,0.21,47037.0,47036.0,0.0536894]
[1641047471073,0.20879223,47037.0,47036.0,0.3939494]
[1641047478673,0.17997918,47037.0,47036.0,0.3939494]
[1641047479473,0.17997918,47037.0,47036.0,3.2863493]
[1641047480516,0.17997918,47037.0,47036.0,0.3939494]
[1641047480717,0.17997918,47037.0,47036.0,0.39516636]
[1641047484385,0.17997918,47037.0,47036.0,0.3514494]
[1641047484686,0.23315318,47037.0,47036.0,0.0111894]
[1641047485085,0.33315318,47037.0,47036.0,0.0111894]
[1641047485288,0.67341318,47037.0,47036.0,0.0111894]
[1641047485486,0.817902,47037.0,47036.0,0.0111894]
[1641047485886,1.42493944,47037.0,47036.0,0.0111894]
[1641047486287,1.44666091,47037.0,47036.0,0.0111894]
[1641047486886,1.26264654,47037.0,47036.0,0.0111894]
[1641047487093,1.26264654,47037.0,47034.0,0.00797225]
[1641047487094,1.01026,47036.0,47034.0,0.00797225]
[1641047487320,0.91804511,47035.0,47034.0,0.00797225]
[1641047487520,0.91804511,47035.0,47019.0,0.00033]
[1641047487521,0.34026,47032.0,47019.0,0.00033]
[1641047487722,0.00123982,47028.0,47021.0,0.002]
[1641047487924,0.25709605,47027.0,47026.0,0.00032864]
[1641047488122,0.35709605,47027.0,47026.0,0.00032864]
[1641047488319,0.60148487,47027.0,47026.0,0.00032864]
[1641047488520,0.99493787,47027.0,47026.0,0.00032864]
[1641047489423,1.34927343,47027.0,47026.0,0.00032864]
[1641047490223,1.36989633,47027.0,47026.0,0.00032864]
[1641047490431,1.4510492,47027.0,47026.0,0.00032864]
[1641047491267,1.47123972,47027.0,47026.0,0.00032864]
[1641047491469,1.35071682,47027.0,47026.0,0.00032864]
[1641047491770,1.35071682,47027.0,47021.0,0.00885224]
[1641047491771,0.34026,47023.0,47021.0,0.00885224]
[1641047491969,0.39346,47022.0,47021.0,0.00777224]
[1641047492170,0.53596,47022.0,47020.0,0.00011]
[1641047492371,0.41689977,47021.0,47018.0,0.00714944]
[1641047492569,0.32338849,47019.0,47018.0,0.00714944]
[1641047492768,0.71364849,47019.0,47018.0,0.00692944]
[1641047492972,0.76364849,47019.0,47018.0,0.00692944]
[1641047493169,0.81685049,47019.0,47018.0,0.00681944]
[1641047493371,0.93026,47018.0,47013.0,0.0091824]
[1641047493570,0.07663977,47016.0,47015.0,0.00022]
[1641047493771,0.41689977,47016.0,47015.0,0.00022]
[1641047493971,0.46689977,47016.0,47015.0,0.00022]
[1641047494825,0.51689977,47016.0,47015.0,0.00022]
[1641047495325,0.53643147,47016.0,47015.0,0.00022]
[1641047496325,0.83010079,47016.0,47015.0,0.00022]
[1641047496524,0.91056909,47016.0,47015.0,0.00022]
[1641047496724,0.81056909,47016.0,47015.0,0.00022]
[1641047496928,0.71056909,47016.0,47015.0,0.00022]
[1641047497125,0.76056909,47016.0,47015.0,0.00022]
[1641047497326,0.82926559,47016.0,47015.0,0.00022]
[1641047497525,0.92926559,47016.0,47015.0,0.00022]
[1641047497725,0.8592312,47016.0,47015.0,0.00022]
[1641047497929,0.7592312,47016.0,47015.0,0.00022]
[1641047498327,0.50495835,47016.0,47015.0,0.00022]
[1641047498565,0.48626185,47016.0,47015.0,0.00022]
[1641047499167,0.48626185,47016.0,47015.0,0.00140992]
[1641047499367,0.50643064,47016.0,47015.0,0.00140992]
[1641047499566,0.48706856,47016.0,47015.0,0.00140992]
[1641047500267,0.50854528,47016.0,47015.0,0.00140992]
[1641047500469,0.7690249,47016.0,47015.0,0.00140992]
[1641047501268,0.7886169,47016.0,47015.0,0.00140992]
[1641047501770,0.76714018,47016.0,47015.0,0.00140992]
[1641047502532,0.48673889,47016.0,47015.0,0.00140992]
[1641047503931,0.50611478,47016.0,47015.0,0.00998048]
[1641047504132,0.48627566,47016.0,47015.0,0.00998048]
[1641047504332,0.50785858,47016.0,47015.0,0.00998048]
[1641047504530,0.48848269,47016.0,47015.0,0.00998048]
[1641047504731,0.48848269,47016.0,47015.0,0.00877048]
[1641047504937,0.48848269,47016.0,47011.0,0.002]
[1641047504938,0.55,47013.0,47011.0,0.002]
[1641047505133,0.2294836,47012.0,47011.0,0.0009]
[1641047505331,0.2794836,47012.0,47011.0,0.0009]
[1641047505977,0.3219836,47012.0,47011.0,0.0009]
[1641047506176,0.4219836,47012.0,47011.0,0.0009]
[1641047506377,0.66999585,47012.0,47006.0,0.01907253]
[1641047506678,0.34026,47011.0,47006.0,0.01907253]
[1641047506876,0.43276,47011.0,47006.0,0.01907253]
[1641047507076,0.53276,47011.0,47010.0,0.00051212]
[1641047507477,0.55371713,47011.0,47010.0,0.00051212]
[1641047507777,0.55371713,47011.0,47006.0,0.01907253]
[1641047507778,1.003477,47010.0,47006.0,0.01907253]
[1641047507975,0.41694222,47009.0,47006.0,0.01907253]
[1641047508179,0.37,47008.0,47006.0,0.01022]
[1641047508378,0.4169414,47008.0,47006.0,0.01022]
[1641047509480,1.28026,47007.0,47006.0,0.00956]
[1641047509735,1.41990185,47007.0,47006.0,0.00791]
[1641047509928,1.56990185,47007.0,47006.0,0.00721304]
[1641047510130,0.0999,47003.0,47002.0,0.01518223]
[1641047510329,0.0999,47003.0,47002.0,0.01507223]
[1641047510529,1.07013035,47003.0,47002.0,0.01514526]
[1641047510730,1.21461917,47003.0,47001.0,0.00244]
[1641047511031,0.48474882,47002.0,47001.0,0.00244]
[1641047511828,0.76352547,47002.0,47001.0,0.00244]
[1641047512231,0.86352547,47002.0,47001.0,0.00244]
[1641047512430,0.86352547,47002.0,47001.0,0.00233]
[1641047512431,0.88383516,47002.0,47001.0,0.00233]
[1641047512631,0.84026,47001.0,46993.0,0.00033]
[1641047512840,0.67081416,47000.0,46993.0,0.00033]
[1641047513235,0.67207778,47000.0,46993.0,0.00033]
[1641047513482,0.6213264,46999.0,46993.0,0.00033]
[1641047513683,0.6638264,46999.0,46993.0,0.00033]
[1641047513889,0.27332177,46998.0,46993.0,0.00033]
[1641047514082,0.65608177,46998.0,46993.0,0.00033]
[1641047515185,0.74581008,46998.0,46993.0,0.00033]
[1641047515982,0.42549102,46997.0,46993.0,0.00033]
[1641047517226,0.14448882,46996.0,46993.0,0.00033]
[1641047517422,0.48474882,46996.0,46993.0,0.00033]
[1641047518421,0.50310186,46996.0,46993.0,0.00033]
[1641047519423,0.52272824,46996.0,46993.0,0.00033]
[1641047519822,0.5043752,46996.0,46993.0,0.00033]
[1641047521267,0.52413322,46996.0,46993.0,0.00033]
[1641047521467,0.50450684,46996.0,46993.0,0.00033]